[Event "95th Caplin Hastings Congress"]
[Site "Hastings"]
[Date "2020.01.03"]
[Round "7.27"]
[White "Fishbein, Mitch"]
[Black "Elwin, Adrian G"]
[Result "0-1"]
[ECO "B38"]
[WhiteElo "2143"]
[BlackElo "1986"]
[Annotator "NA"]
[PlyCount "96"]
[EventDate "2019.12.28"]
[EventType "swiss"]
[EventCountry "ENG"]
[SourceTitle "playchess.com"]
[Source "ChessBase"]
[SourceQuality "1"]
[TimeControl "40/6600+30:3000+30"]

1. Nf3 {[%emt 0:09:47]} Nf6 {[%emt 0:09:41]} 2. c4 {[%emt 0:00:12]} c5 {[%emt 0:01:50]} 3. Nc3 {[%emt 0:00:20]} Nc6 {[%emt 0:01:30]} 4. d4 {[%emt 0:01:07]} cxd4 {[%emt 0:03:27]} 5. Nxd4 {[%emt 0:00:22]} g6 {[%emt 0:00:17]} 6. e4 {[%emt 0:00:43]} d6 {[%emt 0:00:36]} 7. Be2 {[%emt 0:00:57]} Bg7 {[%emt 0:00:51]} 8. Be3 {[%emt 0:00:37]} O-O {[%emt 0:02:56]} 9. O-O {[%emt 0:01:08]} Bd7 {[%emt 0:07:36]} 10. Qd2 {[%emt 0:00:44]} Ng4 {[%emt 0:20:35]} 11. Bxg4 {[%emt 0:00:48]} Bxg4 {[%emt 0:00:03]} 12. f3 {[%emt 0:00:22]} Bd7 {[%emt 0:01:54]} 13. Rac1 {[%emt 0:05:53]} Qa5 {[%emt 0:10:13]} 14. Rfd1 {[%emt 0:11:18]} Rfc8 {[%emt 0:08:10]} 15. Nb3 {[%emt 0:04:55]} Qh5 {[%emt 0:04:54]} 16. Ne2 {[%emt 0:04:28]} Ne5 {[%emt 0:05:42]} 17. Ng3 {[%emt 0:05:11]} Qxf3 {[%emt 0:10:31]} 18. gxf3 {[%emt 0:00:50]} Nxf3+ {[%emt 0:00:03]} 19. Kf2 {[%emt 0:00:45]} Nxd2 {[%emt 0:00:08]} 20. Rxd2 {[%emt 0:00:20]} Bc6 {[%emt 0:02:09]} 21. Nd4 {[%emt 0:02:02]} Rf8 {[%emt 0:00:39]} 22. Ke2 {[%emt 0:02:42]} Bd7 {[%emt 0:00:16]} 23. Rf1 {[%emt 0:03:26]} Rac8 {[%emt 0:00:58]} 24. b3 {[%emt 0:01:14]} a6 {[%emt 0:03:06]} 25. Kd3 {[%emt 0:19:02]} b5 {[%emt 0:08:15]} 26. Nge2 {[%emt 0:03:11]} e5 {[%emt 0:02:12]} 27. Nc2 {[%emt 0:12:53]} bxc4+ {[%emt 0:00:56]} 28. bxc4 {[%emt 0:01:32]} f5 {[%emt 0:02:44]} 29. Kc3 {[%emt 0:02:17]} Be6 {[%emt 0:01:46]} 30. Na3 {[%emt 0:00:55]} Rc6 {[%emt 0:00:45]} 31. Rfd1 {[%emt 0:04:20]} Bxc4 {[%emt 0:01:36]} 32. Nxc4 {[%emt 0:03:47]} Rfc8 {[%emt 0:00:04]} 33. Rxd6 {[%emt 0:03:06]} Rxc4+ {[%emt 0:00:06]} 34. Kd2 {[%emt 0:00:43]} Bf8 {[%emt 0:01:07]} 35. Ke1 {[%emt 0:06:10]} Bxd6 {[%emt 0:00:17]} 36. Rxd6 {[%emt 0:00:01]} Rxe4 {[%emt 0:00:27]} 37. Bh6 {[%emt 0:04:04]} Rh4 {[%emt 0:01:24]} 38. Bg5 {[%emt 0:00:13]} Rxh2 {[%emt 0:00:13]} 39. Re6 {[%emt 0:01:29]} Kf7 {[%emt 0:04:28]} 40. Re7+ {[%emt 0:00:02]} Kf8 {[%emt 0:00:13]} 41. Rxe5 {[%emt 0:50:11]} Re8 {[%emt 0:50:10]} 42. Rxe8+ {[%emt 0:00:57]} Kxe8 {[%emt 0:00:02]} 43. Nc3 {[%emt 0:00:01]} h6 {[%emt 0:00:30]} 44. Bf4 {[%emt 0:00:05]} Rh3 {[%emt 0:00:10]} 45. Nd5 {[%emt 0:00:15]} g5 {[%emt 0:00:25]} 46. Be5 {[%emt 0:00:13]} Kf7 {[%emt 0:00:23]} 47. Bb8 {[%emt 0:00:28]} Ra3 {[%emt 0:00:37]} 48. Nb4 {[%emt 0:00:53]} a5 {[%emt 0:00:09]} 0-1

[Event "95th Caplin Hastings Congress"]
[Site "Hastings"]
[Date "2020.01.03"]
[Round "7.28"]
[White "Pavlov, Mikhail"]
[Black "Boino, Claudio"]
[Result "1-0"]
[ECO "B40"]
[WhiteElo "1961"]
[BlackElo "2146"]
[Annotator "NA"]
[PlyCount "91"]
[EventDate "2019.12.28"]
[EventType "swiss"]
[EventCountry "ENG"]
[SourceTitle "playchess.com"]
[Source "ChessBase"]
[SourceQuality "1"]
[TimeControl "40/6600+30:3000+30"]

1. e4 {[%emt 0:09:33]} c5 {[%emt 0:09:35]} 2. Nf3 {[%emt 0:02:30]} e6 {[%emt 0:00:08]} 3. g3 {[%emt 0:03:53]} d5 {[%emt 0:14:16]} 4. exd5 {[%emt 0:05:35]} exd5 {[%emt 0:00:11]} 5. d4 {[%emt 0:00:06]} cxd4 {[%emt 0:02:44]} 6. Nxd4 {[%emt 0:00:17]} Nf6 {[%emt 0:01:17]} 7. Bg2 {[%emt 0:00:39]} Be7 {[%emt 0:05:33]} 8. O-O {[%emt 0:01:13]} O-O {[%emt 0:00:07]} 9. Nc3 {[%emt 0:14:03]} h6 {[%emt 0:06:27]} 10. Bf4 {[%emt 0:04:12]} a6 {[%emt 0:03:07]} 11. h3 {[%emt 0:04:31]} Nc6 {[%emt 0:02:12]} 12. Re1 {[%emt 0:05:46]} Bb4 {[%emt 0:05:20]} 13. Qd3 {[%emt 0:03:40]} Bc5 {[%emt 0:08:19]} 14. Nb3 {[%emt 0:04:53]} Bb4 {[%emt 0:08:21]} 15. Rad1 {[%emt 0:06:55]} Be6 {[%emt 0:11:13]} 16. a3 {[%emt 0:01:51]} Bxc3 {[%emt 0:01:25]} 17. Qxc3 {[%emt 0:00:21]} Qc8 {[%emt 0:08:07]} 18. Bxh6 {[%emt 0:16:14]} Ne7 {[%emt 0:06:20]} 19. Bd2 {[%emt 0:01:44]} Nc6 {[%emt 0:06:13]} 20. g4 {[%emt 0:01:07]} Ne4 {[%emt 0:00:43]} 21. Bxe4 {[%emt 0:05:43]} dxe4 {[%emt 0:00:06]} 22. Bf4 {[%emt 0:00:19]} Rd8 {[%emt 0:02:50]} 23. Rxd8+ {[%emt 0:02:29]} Qxd8 {[%emt 0:00:08]} 24. Nc5 {[%emt 0:02:06]} Qd5 {[%emt 0:02:06]} 25. Nxe4 {[%emt 0:07:26]} Nd4 {[%emt 0:00:44]} 26. Qd3 {[%emt 0:01:33]} Nxc2 {[%emt 0:10:09]} 27. Qxc2 {[%emt 0:00:35]} Rc8 {[%emt 0:00:07]} 28. Qd2 {[%emt 0:00:48]} Qb3 {[%emt 0:00:14]} 29. Nc3 {[%emt 0:00:57]} b5 {[%emt 0:00:32]} 30. Re3 {[%emt 0:01:50]} a5 {[%emt 0:01:29]} 31. Rd3 {[%emt 0:02:36]} Qc4 {[%emt 0:01:24]} 32. Rd4 {[%emt 0:00:12]} Qc6 {[%emt 0:00:20]} 33. Rd8+ {[%emt 0:00:16]} Rxd8 {[%emt 0:00:12]} 34. Qxd8+ {[%emt 0:00:04]} Kh7 {[%emt 0:00:05]} 35. Qd3+ {[%emt 0:00:08]} Kg8 {[%emt 0:00:25]} 36. Qe4 {[%emt 0:01:47]} Qd7 {[%emt 0:00:20]} 37. Qa8+ {[%emt 0:01:55]} Kh7 {[%emt 0:00:34]} 38. Qe4+ {[%emt 0:00:12]} Kg8 {[%emt 0:00:09]} 39. Be3 {[%emt 0:00:27]} Bc4 {[%emt 0:00:20]} 40. Qd4 {[%emt 0:01:25]} Qe7 {[%emt 0:02:39]} 41. Ne4 {[%emt 0:51:35]} f6 {[%emt 0:07:36]} 42. Ng3 {[%emt 0:00:00]} Qb7 {[%emt 0:01:13]} 43. Nf5 {[%emt 0:00:00]} Kh7 {[%emt 0:03:13]} 44. Qd6 {[%emt 0:00:00]} Qf7 {[%emt 0:01:02]} 45. Qe7 {[%emt 0:00:00]} Qg6 {[%emt 0:00:07]} 46. Bh6 {[%emt 0:00:00]} 1-0

[Event "95th Caplin Hastings Congress"]
[Site "Hastings"]
[Date "2020.01.03"]
[Round "7.29"]
[White "Thompson, Ian D"]
[Black "Fryer, David W"]
[Result "1-0"]
[ECO "A54"]
[WhiteElo "2141"]
[BlackElo "1913"]
[Annotator "NA"]
[PlyCount "71"]
[EventDate "2019.12.28"]
[EventType "swiss"]
[EventCountry "ENG"]
[SourceTitle "playchess.com"]
[Source "ChessBase"]
[SourceQuality "1"]
[TimeControl "40/6600+30:3000+30"]

1. c4 {[%emt 0:09:34]} Nf6 {[%emt 0:09:51]} 2. Nc3 {[%emt 0:00:14]} d6 {[%emt 0:00:19]} 3. g3 {[%emt 0:00:24]} Nbd7 {[%emt 0:00:21]} 4. Bg2 {[%emt 0:00:28]} c6 {[%emt 0:00:27]} 5. d4 {[%emt 0:05:46]} e5 {[%emt 0:01:07]} 6. Nf3 {[%emt 0:02:27]} Be7 {[%emt 0:01:41]} 7. O-O {[%emt 0:02:26]} h6 {[%emt 0:04:18]} 8. Qc2 {[%emt 0:03:24]} exd4 {[%emt 0:02:03]} 9. Nxd4 {[%emt 0:00:12]} Ne5 {[%emt 0:01:46]} 10. b3 {[%emt 0:00:57]} Qc7 {[%emt 0:08:05]} 11. Bb2 {[%emt 0:01:48]} Rg8 {[%emt 0:08:27]} 12. a4 {[%emt 0:31:41]} a5 {[%emt 0:02:07]} 13. f4 {[%emt 0:05:39]} Ng6 {[%emt 0:07:19]} 14. e4 {[%emt 0:02:47]} Bd7 {[%emt 0:03:08]} 15. Nce2 {[%emt 0:01:25]} Nf8 {[%emt 0:07:23]} 16. Bc3 {[%emt 0:03:41]} Rc8 {[%emt 0:07:12]} 17. Qd2 {[%emt 0:02:31]} b6 {[%emt 0:00:48]} 18. Rae1 {[%emt 0:03:04]} g5 {[%emt 0:04:26]} 19. fxg5 {[%emt 0:03:16]} hxg5 {[%emt 0:02:04]} 20. Nc2 {[%emt 0:04:05]} N6h7 {[%emt 0:03:16]} 21. Ned4 {[%emt 0:01:53]} Ng6 {[%emt 0:10:50]} 22. Ne3 {[%emt 0:00:31]} g4 {[%emt 0:01:58]} 23. Ndf5 {[%emt 0:03:11]} Ne5 {[%emt 0:05:44]} 24. Nh6 {[%emt 0:06:21]} Rg6 {[%emt 0:02:30]} 25. Nhf5 {[%emt 0:02:53]} Bf8 {[%emt 0:03:27]} 26. Rd1 {[%emt 0:02:35]} Ng5 {[%emt 0:01:21]} 27. Bxe5 {[%emt 0:02:09]} dxe5 {[%emt 0:01:16]} 28. Nxg4 {[%emt 0:00:26]} Nxe4 {[%emt 0:04:08]} 29. Bxe4 {[%emt 0:00:45]} Rxg4 {[%emt 0:00:18]} 30. Qe2 {[%emt 0:00:50]} Rg8 {[%emt 0:01:27]} 31. Qf3 {[%emt 0:00:57]} Be6 {[%emt 0:02:29]} 32. Rd3 {[%emt 0:00:32]} b5 {[%emt 0:09:07]} 33. Rfd1 {[%emt 0:02:06]} bxc4 {[%emt 0:01:22]} 34. Bxc6+ {[%emt 0:00:48]} Qxc6 {[%emt 0:01:14]} 35. Qxc6+ {[%emt 0:00:23]} Rxc6 {[%emt 0:00:38]} 36. Rd8# {[%emt 0:00:25]} 1-0

[Event "95th Caplin Hastings Congress"]
[Site "Hastings"]
[Date "2020.01.03"]
[Round "7.30"]
[White "Burrows, Nick"]
[Black "De Boer, Bas"]
[Result "0-1"]
[ECO "D35"]
[WhiteElo "1952"]
[BlackElo "2140"]
[Annotator "NA"]
[PlyCount "108"]
[EventDate "2019.12.28"]
[EventType "swiss"]
[EventCountry "ENG"]
[SourceTitle "playchess.com"]
[Source "ChessBase"]
[SourceQuality "1"]
[TimeControl "40/6600+30:3000+30"]

1. d4 {[%emt 0:09:38]} d5 {[%emt 0:09:35]} 2. c4 {[%emt 0:00:12]} e6 {[%emt 0:00:05]} 3. cxd5 {[%emt 0:00:13]} exd5 {[%emt 0:00:09]} 4. Nc3 {[%emt 0:00:11]} c6 {[%emt 0:01:08]} 5. Qc2 {[%emt 0:00:31]} Nf6 {[%emt 0:01:34]} 6. Bg5 {[%emt 0:00:23]} Nbd7 {[%emt 0:01:34]} 7. e3 {[%emt 0:00:39]} Qa5 {[%emt 0:02:30]} 8. Bd3 {[%emt 0:03:27]} Bb4 {[%emt 0:02:23]} 9. Nge2 {[%emt 0:02:18]} h6 {[%emt 0:02:10]} 10. Bh4 {[%emt 0:07:48]} O-O {[%emt 0:00:18]} 11. O-O {[%emt 0:01:00]} Re8 {[%emt 0:01:40]} 12. a3 {[%emt 0:00:57]} Bf8 {[%emt 0:00:09]} 13. Rac1 {[%emt 0:09:18]} g5 {[%emt 0:03:01]} 14. Bg3 {[%emt 0:00:46]} Bg7 {[%emt 0:00:24]} 15. Na4 {[%emt 0:06:48]} Qd8 {[%emt 0:10:50]} 16. b4 {[%emt 0:01:37]} Qe7 {[%emt 0:02:22]} 17. Nc5 {[%emt 0:05:10]} Ne4 {[%emt 0:02:02]} 18. Bxe4 {[%emt 0:07:41]} dxe4 {[%emt 0:00:17]} 19. Nc3 {[%emt 0:01:06]} f5 {[%emt 0:02:53]} 20. Rfd1 {[%emt 0:08:46]} Qf7 {[%emt 0:07:41]} 21. Qd2 {[%emt 0:13:07]} Nb6 {[%emt 0:02:14]} 22. b5 {[%emt 0:03:55]} Nc4 {[%emt 0:02:53]} 23. Qa2 {[%emt 0:04:57]} b6 {[%emt 0:03:58]} 24. bxc6 {[%emt 0:09:56]} bxc5 {[%emt 0:01:25]} 25. Nb5 {[%emt 0:02:26]} f4 {[%emt 0:12:21]} 26. exf4 {[%emt 0:04:37]} gxf4 {[%emt 0:00:13]} 27. Bxf4 {[%emt 0:01:07]} Qxf4 {[%emt 0:01:12]} 28. Qxc4+ {[%emt 0:00:30]} Be6 {[%emt 0:01:19]} 29. d5 {[%emt 0:00:22]} Bg4 {[%emt 0:05:00]} 30. d6+ {[%emt 0:00:48]} Kh8 {[%emt 0:03:49]} 31. Nc7 {[%emt 0:02:06]} Be5 {[%emt 0:02:45]} 32. g3 {[%emt 0:01:02]} Qf3 {[%emt 0:00:12]} 33. Qf1 {[%emt 0:01:30]} e3 {[%emt 0:00:31]} 34. fxe3 {[%emt 0:02:19]} Qxe3+ {[%emt 0:00:08]} 35. Qf2 {[%emt 0:00:23]} Qxf2+ {[%emt 0:00:47]} 36. Kxf2 {[%emt 0:00:01]} Rf8+ {[%emt 0:02:03]} 37. Kg1 {[%emt 0:02:23]} Rab8 {[%emt 0:00:53]} 38. Na6 {[%emt 0:02:53]} Rbd8 {[%emt 0:11:39]} 39. d7 {[%emt 0:02:21]} Bd4+ {[%emt 0:00:11]} 40. Rxd4 {[%emt 0:01:04]} cxd4 {[%emt 0:00:07]} 41. Nc5 {[%emt 0:34:45]} d3 {[%emt 0:02:21]} 42. Nxd3 {[%emt 0:00:21]} Bxd7 {[%emt 0:00:06]} 43. cxd7 {[%emt 0:00:57]} Rxd7 {[%emt 0:00:07]} 44. Nf4 {[%emt 0:02:58]} Rd6 {[%emt 0:00:10]} 45. Rc7 {[%emt 0:01:02]} Ra6 {[%emt 0:00:13]} 46. Kg2 {[%emt 0:01:34]} Rf5 {[%emt 0:01:03]} 47. h4 {[%emt 0:01:01]} Kg8 {[%emt 0:02:08]} 48. h5 {[%emt 0:01:39]} Rxa3 {[%emt 0:05:42]} 49. Rc6 {[%emt 0:02:00]} Rg5 {[%emt 0:01:11]} 50. Rc8+ {[%emt 0:00:50]} Kh7 {[%emt 0:04:37]} 51. Kh2 {[%emt 0:02:35]} Rgxg3 {[%emt 0:00:50]} 52. Rc7+ {[%emt 0:02:38]} Rg7 {[%emt 0:00:23]} 53. Rc6 {[%emt 0:00:48]} Rb7 {[%emt 0:01:15]} 54. Rc2 {[%emt 0:00:36]} Rab3 {[%emt 0:00:55]} 0-1

[Event "95th Caplin Hastings Congress"]
[Site "Hastings"]
[Date "2020.01.03"]
[Round "7.31"]
[White "Unnikrishnan, Midhun P"]
[Black "Jennings, Richard"]
[Result "1-0"]
[ECO "C41"]
[WhiteElo "2135"]
[BlackElo "1903"]
[Annotator "NA"]
[PlyCount "49"]
[EventDate "2019.12.28"]
[EventType "swiss"]
[EventCountry "ENG"]
[SourceTitle "playchess.com"]
[Source "ChessBase"]
[SourceQuality "1"]
[TimeControl "40/6600+30:3000+30"]

1. Nf3 {[%emt 0:09:33]} d6 {[%emt 0:09:46]} 2. d4 {[%emt 0:00:10]} Nf6 {[%emt 0:00:09]} 3. Nc3 {[%emt 0:02:09]} Nbd7 {[%emt 0:01:13]} 4. e4 {[%emt 0:01:00]} e5 {[%emt 0:00:25]} 5. Bc4 {[%emt 0:02:29]} Be7 {[%emt 0:00:15]} 6. O-O {[%emt 0:06:33]} O-O {[%emt 0:00:22]} 7. h3 {[%emt 0:00:19]} c6 {[%emt 0:03:52]} 8. a4 {[%emt 0:00:35]} b6 {[%emt 0:01:45]} 9. Qe2 {[%emt 0:01:39]} Bb7 {[%emt 0:00:55]} 10. dxe5 {[%emt 0:02:53]} dxe5 {[%emt 0:00:30]} 11. Rd1 {[%emt 0:00:50]} Qc7 {[%emt 0:00:29]} 12. Bg5 {[%emt 0:03:12]} a6 {[%emt 0:02:38]} 13. Nh4 {[%emt 0:13:28]} g6 {[%emt 0:08:21]} 14. Bh6 {[%emt 0:09:29]} Rfe8 {[%emt 0:14:34]} 15. Bxf7+ {[%emt 0:00:25]} Kh8 {[%emt 0:07:51]} 16. Bxe8 {[%emt 0:00:12]} Rxe8 {[%emt 0:00:53]} 17. Qc4 {[%emt 0:02:17]} Nh5 {[%emt 0:12:32]} 18. Qf7 {[%emt 0:04:28]} Qc8 {[%emt 0:02:28]} 19. g4 {[%emt 0:01:39]} Ndf6 {[%emt 0:01:27]} 20. gxh5 {[%emt 0:01:37]} Nxh5 {[%emt 0:00:32]} 21. Ng2 {[%emt 0:00:53]} c5 {[%emt 0:02:55]} 22. Nd5 {[%emt 0:04:42]} Bf8 {[%emt 0:04:27]} 23. Nxb6 {[%emt 0:03:04]} Qe6 {[%emt 0:06:25]} 24. Qxe6 {[%emt 0:00:16]} Rxe6 {[%emt 0:00:09]} 25. Rd8 {[%emt 0:00:05]} 1-0

[Event "95th Caplin Hastings Congress"]
[Site "Hastings"]
[Date "2020.01.03"]
[Round "7.32"]
[White "Barton, R Alan"]
[Black "Ryzhkov, Vjacheslav"]
[Result "0-1"]
[ECO "E14"]
[WhiteElo "1945"]
[BlackElo "2134"]
[Annotator "NA"]
[PlyCount "142"]
[EventDate "2019.12.28"]
[EventType "swiss"]
[EventCountry "ENG"]
[SourceTitle "playchess.com"]
[Source "ChessBase"]
[SourceQuality "1"]
[TimeControl "40/6600+30:3000+30"]

1. Nf3 {[%emt 0:09:59]} f5 {[%emt 0:10:03]} 2. d4 {[%emt 0:05:40]} Nf6 {[%emt 0:00:48]} 3. e3 {[%emt 0:02:53]} e6 {[%emt 0:00:44]} 4. Bd3 {[%emt 0:00:22]} b6 {[%emt 0:00:24]} 5. O-O {[%emt 0:01:49]} Bb7 {[%emt 0:00:10]} 6. c4 {[%emt 0:00:33]} Ne4 {[%emt 0:00:44]} 7. b3 {[%emt 0:03:39]} a5 {[%emt 0:06:40]} 8. a3 {[%emt 0:01:43]} Bd6 {[%emt 0:00:42]} 9. Bb2 {[%emt 0:08:13]} O-O {[%emt 0:01:16]} 10. Nc3 {[%emt 0:05:47]} Ng5 {[%emt 0:12:30]} 11. d5 {[%emt 0:11:21]} Na6 {[%emt 0:05:44]} 12. Nxg5 {[%emt 0:04:07]} Qxg5 {[%emt 0:00:31]} 13. f4 {[%emt 0:00:03]} Qe7 {[%emt 0:01:33]} 14. Qf3 {[%emt 0:08:01]} Rae8 {[%emt 0:09:19]} 15. Bc2 {[%emt 0:04:46]} exd5 {[%emt 0:10:10]} 16. Nxd5 {[%emt 0:00:09]} Qe6 {[%emt 0:05:37]} 17. Rfe1 {[%emt 0:08:02]} Nc5 {[%emt 0:06:26]} 18. Rad1 {[%emt 0:03:57]} Qg6 {[%emt 0:07:22]} 19. b4 {[%emt 0:06:04]} axb4 {[%emt 0:00:27]} 20. axb4 {[%emt 0:00:04]} Ne4 {[%emt 0:01:20]} 21. Bxe4 {[%emt 0:04:06]} Rxe4 {[%emt 0:03:37]} 22. Qf1 {[%emt 0:02:23]} Rfe8 {[%emt 0:04:03]} 23. Rd4 {[%emt 0:05:45]} Bxd5 {[%emt 0:01:22]} 24. Rxd5 {[%emt 0:00:57]} Rxe3 {[%emt 0:01:57]} 25. Rxe3 {[%emt 0:02:09]} Rxe3 {[%emt 0:00:11]} 26. c5 {[%emt 0:02:13]} Qe6 {[%emt 0:00:59]} 27. Rd1 {[%emt 0:02:55]} bxc5 {[%emt 0:00:13]} 28. bxc5 {[%emt 0:01:40]} Bxc5 {[%emt 0:00:05]} 29. Kh1 {[%emt 0:00:03]} Bb4 {[%emt 0:01:05]} 30. Be5 {[%emt 0:01:08]} d6 {[%emt 0:01:25]} 31. Qb5 {[%emt 0:01:09]} dxe5 {[%emt 0:05:44]} 32. Qxb4 {[%emt 0:00:33]} exf4 {[%emt 0:01:54]} 33. h3 {[%emt 0:01:44]} Qe7 {[%emt 0:04:31]} 34. Qxf4 {[%emt 0:00:45]} g6 {[%emt 0:02:51]} 35. Qc4+ {[%emt 0:00:39]} Kg7 {[%emt 0:00:16]} 36. Qd4+ {[%emt 0:01:05]} Kh6 {[%emt 0:06:46]} 37. Qf4+ {[%emt 0:02:42]} Kg7 {[%emt 0:00:14]} 38. Qd4+ {[%emt 0:00:26]} Kf7 {[%emt 0:00:07]} 39. Qc4+ {[%emt 0:01:24]} Kf6 {[%emt 0:00:15]} 40. Qc6+ {[%emt 0:03:41]} Kg5 {[%emt 0:01:19]} 41. Qc1 {[%emt 0:53:39]} Kh5 {[%emt 0:54:22]} 42. Rf1 {[%emt 0:00:00]} Qe5 {[%emt 0:00:00]} 43. Qd1+ {[%emt 0:00:00]} Kh6 {[%emt 0:00:00]} 44. Qd8 {[%emt 0:00:00]} c5 {[%emt 0:00:00]} 45. Qf8+ {[%emt 0:00:00]} Kh5 {[%emt 0:00:00]} 46. Qf7 {[%emt 0:00:00]} h6 {[%emt 0:00:00]} 47. Qc4 {[%emt 0:00:00]} Qe4 {[%emt 0:00:00]} 48. Qxc5 {[%emt 0:00:00]} Rxh3+ {[%emt 0:00:00]} 49. Kg1 {[%emt 0:00:00]} Qe3+ {[%emt 0:00:00]} 50. Qxe3 {[%emt 0:00:00]} Rxe3 {[%emt 0:00:00]} 51. Kf2 {[%emt 0:00:00]} Ra3 {[%emt 0:00:00]} 52. Rb1 {[%emt 0:00:00]} Kg4 {[%emt 0:00:00]} 53. Rb6 {[%emt 0:00:00]} Ra2+ {[%emt 0:00:00]} 54. Kf1 {[%emt 0:00:00]} Kg5 {[%emt 0:00:00]} 55. g3 {[%emt 0:00:00]} h5 {[%emt 0:00:00]} 56. Rc6 {[%emt 0:00:00]} Ra4 {[%emt 0:00:00]} 57. Kg2 {[%emt 0:00:00]} h4 {[%emt 0:00:00]} 58. gxh4+ {[%emt 0:00:00]} Rxh4 {[%emt 0:00:00]} 59. Kg3 {[%emt 0:00:00]} Ra4 {[%emt 0:00:00]} 60. Kg2 {[%emt 0:00:00]} Ra3 {[%emt 0:00:00]} 61. Kf2 {[%emt 0:00:00]} f4 {[%emt 0:00:00]} 62. Kg2 {[%emt 0:00:00]} Kf5 {[%emt 0:00:00]} 63. Rc5+ {[%emt 0:00:00]} Kg4 {[%emt 0:00:00]} 64. Rc2 {[%emt 0:00:00]} g5 {[%emt 0:00:00]} 65. Kg1 {[%emt 0:00:00]} Rg3+ {[%emt 0:00:00]} 66. Kh2 {[%emt 0:00:00]} Rh3+ {[%emt 0:00:00]} 67. Kg1 {[%emt 0:00:00]} f3 {[%emt 0:00:00]} 68. Rc4+ {[%emt 0:00:00]} Kg3 {[%emt 0:00:00]} 69. Rc3 {[%emt 0:00:00]} Rh8 {[%emt 0:00:00]} 70. Rc2 {[%emt 0:00:00]} f2+ {[%emt 0:00:00]} 71. Rxf2 {[%emt 0:00:00]} Rh1+ {[%emt 0:00:00]} 0-1

[Event "95th Caplin Hastings Congress"]
[Site "Hastings"]
[Date "2020.01.03"]
[Round "7.33"]
[White "Brown, Thomas"]
[Black "Thatte, Nishchal"]
[Result "1-0"]
[ECO "A29"]
[WhiteElo "2116"]
[BlackElo "1832"]
[Annotator "NA"]
[PlyCount "63"]
[EventDate "2019.12.28"]
[EventType "swiss"]
[EventCountry "ENG"]
[SourceTitle "playchess.com"]
[Source "ChessBase"]
[SourceQuality "1"]
[TimeControl "40/6600+30:3000+30"]

1. c4 {[%emt 0:12:40]} e5 {[%emt 0:09:36]} 2. g3 {[%emt 0:00:33]} Nf6 {[%emt 0:00:08]} 3. Bg2 {[%emt 0:00:03]} d5 {[%emt 0:00:07]} 4. cxd5 {[%emt 0:00:03]} Nxd5 {[%emt 0:00:07]} 5. Nc3 {[%emt 0:00:06]} Nb6 {[%emt 0:00:11]} 6. Nf3 {[%emt 0:00:06]} Nc6 {[%emt 0:00:05]} 7. O-O {[%emt 0:00:07]} Be7 {[%emt 0:00:05]} 8. Rb1 {[%emt 0:00:04]} a5 {[%emt 0:09:39]} 9. d3 {[%emt 0:02:25]} Be6 {[%emt 0:01:37]} 10. Be3 {[%emt 0:00:37]} O-O {[%emt 0:00:16]} 11. Rc1 {[%emt 0:06:43]} f5 {[%emt 0:06:17]} 12. Na4 {[%emt 0:08:26]} Nd5 {[%emt 0:23:32]} 13. Bc5 {[%emt 0:04:56]} Bd6 {[%emt 0:00:59]} 14. Qb3 {[%emt 0:14:08]} e4 {[%emt 0:30:43]} 15. dxe4 {[%emt 0:22:07]} fxe4 {[%emt 0:01:29]} 16. Nd2 {[%emt 0:02:16]} Nf4 {[%emt 0:00:32]} 17. Qe3 {[%emt 0:01:06]} Nxg2 {[%emt 0:00:27]} 18. Kxg2 {[%emt 0:00:14]} Ra6 {[%emt 0:19:00]} 19. Nxe4 {[%emt 0:04:42]} Ne5 {[%emt 0:02:29]} 20. Rfd1 {[%emt 0:11:56]} Ng4 {[%emt 0:04:28]} 21. Qg5 {[%emt 0:01:24]} Qe8 {[%emt 0:01:31]} 22. f3 {[%emt 0:02:48]} Rf5 {[%emt 0:03:47]} 23. Qd2 {[%emt 0:13:45]} Qxa4 {[%emt 0:01:20]} 24. b3 {[%emt 0:03:59]} Qe8 {[%emt 0:01:10]} 25. Bxd6 {[%emt 0:01:13]} Rd5 {[%emt 0:02:00]} 26. Qf4 {[%emt 0:00:05]} Nxh2 {[%emt 0:00:52]} 27. Rxd5 {[%emt 0:03:09]} Bxd5 {[%emt 0:00:01]} 28. Rxc7 {[%emt 0:00:52]} Bxe4 {[%emt 0:00:05]} 29. Re7 {[%emt 0:02:38]} Qf8 {[%emt 0:01:01]} 30. Qxe4 {[%emt 0:00:22]} Rxd6 {[%emt 0:00:40]} 31. Re8 {[%emt 0:00:07]} Rh6 {[%emt 0:00:04]} 32. Qd5+ {[%emt 0:00:29]} 1-0

[Event "95th Caplin Hastings Congress"]
[Site "Hastings"]
[Date "2020.01.03"]
[Round "7.34"]
[White "Chapman, Matt"]
[Black "Persson, Andreas"]
[Result "1-0"]
[ECO "D02"]
[WhiteElo "1953"]
[BlackElo "2129"]
[Annotator "NA"]
[PlyCount "89"]
[EventDate "2019.12.28"]
[EventType "swiss"]
[EventCountry "ENG"]
[SourceTitle "playchess.com"]
[Source "ChessBase"]
[SourceQuality "1"]
[TimeControl "40/6600+30:3000+30"]

1. d4 {[%emt 0:09:34]} Nf6 {[%emt 0:09:57]} 2. Nf3 {[%emt 0:00:08]} d5 {[%emt 0:00:35]} 3. Bf4 {[%emt 0:00:27]} c5 {[%emt 0:01:31]} 4. e3 {[%emt 0:00:09]} Nc6 {[%emt 0:00:49]} 5. Nbd2 {[%emt 0:00:20]} e6 {[%emt 0:05:43]} 6. c3 {[%emt 0:00:53]} cxd4 {[%emt 0:00:54]} 7. exd4 {[%emt 0:00:24]} Nh5 {[%emt 0:00:27]} 8. Be3 {[%emt 0:02:06]} Bd6 {[%emt 0:01:08]} 9. Ne5 {[%emt 0:01:09]} g6 {[%emt 0:03:02]} 10. Nd3 {[%emt 0:01:27]} O-O {[%emt 0:06:54]} 11. g3 {[%emt 0:01:28]} b6 {[%emt 0:07:31]} 12. Bg2 {[%emt 0:01:55]} Ba6 {[%emt 0:02:27]} 13. Nf3 {[%emt 0:00:25]} Ne7 {[%emt 0:06:24]} 14. O-O {[%emt 0:06:25]} Nf5 {[%emt 0:01:09]} 15. Bc1 {[%emt 0:02:07]} Nf6 {[%emt 0:02:27]} 16. Re1 {[%emt 0:02:45]} Rc8 {[%emt 0:08:03]} 17. Bf4 {[%emt 0:03:37]} Bxd3 {[%emt 0:02:04]} 18. Bxd6 {[%emt 0:01:15]} Nxd6 {[%emt 0:00:06]} 19. Qxd3 {[%emt 0:00:08]} Nc4 {[%emt 0:01:51]} 20. Re2 {[%emt 0:03:38]} Qc7 {[%emt 0:06:03]} 21. Ne5 {[%emt 0:10:50]} Nxe5 {[%emt 0:04:33]} 22. Rxe5 {[%emt 0:01:01]} Qc4 {[%emt 0:01:53]} 23. Qf3 {[%emt 0:05:37]} Kg7 {[%emt 0:06:10]} 24. Bf1 {[%emt 0:05:56]} Qa4 {[%emt 0:02:01]} 25. Bd3 {[%emt 0:02:39]} b5 {[%emt 0:02:08]} 26. a3 {[%emt 0:05:11]} Rc7 {[%emt 0:06:25]} 27. h4 {[%emt 0:01:03]} h5 {[%emt 0:01:21]} 28. Ree1 {[%emt 0:05:00]} Qa5 {[%emt 0:01:24]} 29. Qe2 {[%emt 0:01:27]} Rb8 {[%emt 0:01:37]} 30. Kg2 {[%emt 0:04:10]} Qb6 {[%emt 0:00:53]} 31. f3 {[%emt 0:03:20]} Qd6 {[%emt 0:01:59]} 32. Qe3 {[%emt 0:03:49]} a5 {[%emt 0:00:46]} 33. Kh3 {[%emt 0:02:44]} b4 {[%emt 0:02:09]} 34. axb4 {[%emt 0:01:09]} axb4 {[%emt 0:00:10]} 35. Ra6 {[%emt 0:01:14]} Rb6 {[%emt 0:01:31]} 36. Rxb6 {[%emt 0:00:57]} Qxb6 {[%emt 0:00:04]} 37. Qe5 {[%emt 0:01:07]} bxc3 {[%emt 0:01:27]} 38. g4 {[%emt 0:00:56]} c2 {[%emt 0:03:12]} 39. g5 {[%emt 0:02:45]} c1=Q {[%emt 0:01:07]} 40. Qxf6+ {[%emt 0:00:22]} Kh7 {[%emt 0:03:27]} 41. Rxc1 {[%emt 0:51:15]} Rxc1 {[%emt 0:50:18]} 42. Qxf7+ {[%emt 0:00:13]} Kh8 {[%emt 0:00:07]} 43. Qf8+ {[%emt 0:03:41]} Kh7 {[%emt 0:00:17]} 44. Bxg6+ {[%emt 0:00:23]} Kxg6 {[%emt 0:00:26]} 45. Qg8+ {[%emt 0:00:12]} 1-0